Workbook

Sheet 권별 진도
A1: 전주대 자체입력 권별 진도표
J2: 2014.03.10
A3: 권수 | B3: 쪽수 | C3: 분량 | D3: 입력자 | E3: v1 작업량 | F3: v1 잔여량 | G3: v2 검수범위 | H3: v2 1차검수 | I3: v2 2차검수 | K3: 비고
A4: 26 | B4: 1-273 | C4: =273-1 -> 272 | D4: 심경순 | E4: - | G4: 좌동 | H4: 이혜령 | I4: 김정화
B5: 277-596 | C5: =534-277 -> 257 | D5: 이혜령 | E5: - | I5: 문경득
B6: 597-888 | C6: =888-597 -> 291 | D6: 김정화 | E6: - | G6: 좌동 | H6: 이혜령 | I6: 문경득
A7: 27 | B7: 3-121 | C7: =266-3 -> 263 | D7: 송정현 | E7: - | G7: 좌동 | H7: 이혜령 | I7: 김정화
B8: 122-266 | C8: 148 | D8: 김정화 | E8: 148 | I8: 문경득
B9: 267-386 | C9: =386-267 -> 119 | D9: 김가희 | E9: - | I9: 문경득
B10: 387-572 | C10: =572-387 -> 185 | D10: 김유빈 | E10: - | F10: - | I10: 문경득
B11: 573-584 | C11: =584-573 -> 11 | D11: 김가희 | E11: - | I11: 문경득
B12: 585-724 | C12: =724-585 -> 139 | D12: 안성은 | E12: - | F12: - | I12: 김정화
B13: 725-852 | C13: =852-725 -> 127 | D13: 김가희 | E13: - | F13: - | I13: 김정화
B14: 853-860 | C14: =860-853 -> 7 | D14: 조수연 | E14: - | I14: 문경득
B15: 861-878 | C15: =878-861 -> 17 | D15: 조수연 | E15: - | F15: - | I15: 김정화
B16: 879-920 | C16: =920-879 -> 41 | D16: 김정화 | E16: - | I16: 문경득
B17: 921-994 | C17: =994-921 -> 73 | D17: 김정화 | E17: 73 | I17: 문경득
A18: 28 | B18: 3-52 | C18: =52-3 -> 49 | D18: 심경순 | E18: - | G18: 좌동 | H18: 이혜령 | I18: 김정화
B19: 53-102 | C19: =102-53 -> 49 | D19: 이혜령 | E19: - | I19: 김정화
B20: 103-154 | C20: =154-103 -> 51 | D20: 김정화 | E20: - | G20: 좌동 | H20: 이혜령 | I20: 문경득
B21: 155-204 | C21: =200-155 -> 45 | D21: 송정현 | E21: - | G21: 좌동 | I21: 김정화
B22: 205-255 | C22: =255-205 -> 50 | D22: 김가희 | E22: - | G22: 좌동 | H22: 심경순 | I22: 김정화 | J22: 이혜령
B23: 256-305 | C23: =305-256 -> 49 | D23: 김유빈 | E23: - | G23: 좌동 | H23: 송정현 | I23: 문경득 | J23: 이혜령
B24: 306-357 | C24: =357-306 -> 51 | D24: 안성은 | E24: - | G24: 좌동 | H24: 송정현 | I24: 문경득 | J24: 이혜령
B25: 358-618 | C25: =618-358 -> 260 | D25: 조수연 | E25: - | G25: 358-394 | H25: 이혜령 | I25: 김정화
B26: 619-637 | C26: =637-619 -> 18 | D26: 김가희 | E26: - | G26: 좌동 | H26: 심경순 | I26: 김정화 | J26: 이혜령
B27: 639-669 | C27: =669-639 -> 30 | D27: 김유빈 | E27: - | G27: 좌동 | H27: 심경순 | I27: 김정화 | J27: 이혜령
B28: 673-836 | C28: =836-673 -> 163 | D28: 안성은 | E28: - | G28: 673-723 | H28: 심경순 | I28: 김정화 | J28: 이혜령
G29: 724-774 | H29: 송정현 | I29: 문경득 | J29: 이혜령
G30: 775-836 | H30: 심경순 | I30: 김정화 | J30: 이혜령
B31: 837-857 | C31: =857-837 -> 20 | D31: 김가희 | E31: - | G31: 837-857 | H31: 심경순 | I31: 김정화 | J31: 이혜령
B32: 859-928 | C32: =928-859 -> 69 | D32: 김유빈 | E32: - | G32: 859-876 | H32: 심경순 | I32: 김정화 | J32: 이혜령
G33: 877-928 | H33: 송정현 | I33: 문경득 | J33: 이혜령
B34: 929-948 | C34: =948-929 -> 19 | D34: 김가희 | E34: - | G34: 928-948 | H34: 심경순 | I34: 김정화 | J34: 이혜령
A35: 29 | B35: 1-34 | C35: 34 | D35: 문경득 | E35: - | I35: 김정화
B36: 35-134 | C36: 100 | D36: 김가희 | E36: - | F36: - | I36: 문경득
B37: 135-250 | C37: 116 | D37: 김유빈 | E37: - | F37: - | I37: 문경득
B38: 251-311 | C38: 61 | D38: 안성은 | E38: - | F38: - | I38: 김정화
B39: 312-428 | C39: 117 | D39: 조수연 | F39: - | I39: 김정화
B40: 429-693 | C40: 265 | D40: 심경순 | E40: - | F40: - | I40: 김정화
B41: 694-856 | C41: 163 | D41: 송정현 | E41: 57 | F41: 106 | I41: 문경득
A42: 30 | B42: 3-104 | C42: 102 | D42: 송정현 | F42: =C42-E42 -> 102 | I42: 김정화
B43: 105-527 | C43: 423 | D43: 문경득 | E43: 371 | F43: 53 | I43: 김정화
B44: 528-875 | C44: 348 | D44: 김정화 | F44: 348 | I44: 문경득

Sheet 태깅
A1: 전주대 태깅 권별 진도표
J2: 2014.03.10
A3: 권수 | B3: 영인본 | D3: 잔여량 | E3: 번역본 | G3: 입력자 | H3: v3 입력자 | I3: v3 입력량 | J3: v3 입력범위 | K3: 비고
B4: 쪽수 | C4: 분량 | E4: 쪽수 | F4: 분량
A5: 1 | B5: 1-234 | C5: 234 | D5: 0 | E5: 3-269 | F5: 267 | G5: 심경순 | H5: 김가희 | I5: 1-36 | J5: 36 | K5: 9.29
H6: 김유빈 | I6: 37-64 | J6: 28 | K6: 9.21
H7: 김가희 | I7: 65~100 | J7: 36 | K7: 9.29
H8: 김유빈 | I8: 101-160 | J8: 60 | K8: 10.13
H9: 조수연 | I9: 161-200 | J9: 40 | K9: 10.14
H10: 김가희 | I10: 201-234 | J10: 34 | K10: 10.26
B11: 235-358 | C11: 124 | D11: 0 | E11: 269-469 | F11: 201 | G11: 심경순 | H11: 김가희 | I11: 235-244 | J11: 10 | K11: 8.28
H12: 김유빈 | I12: 245-254 | J12: 10 | K12: 8.29
H13: 안성은 | I13: 255-264 | J13: 10 | K13: 8.29
H14: 조수연 | I14: 265-274 | J14: 10 | K14: 8.29
H15: 김가희 | I15: 275-288 | J15: 14 | K15: 9.04
H16: 김유빈 | I16: 289-302 | J16: 14 | K16: 9.01
H17: 안성은 | I17: 316-303 | J17: 14 | K17: 9.01
H18: 조수연 | I18: 317-330 | J18: 14 | K18: 9.09
H19: 조수연 | I19: 334-340 | J19: 7 | K19: 9.16
H20: 안성은 | I20: 341-358 | J20: 18 | K20: 9.15
B21: 359-576 | C21: 218 | D21: 0 | E21: 469-733 | F21: 265 | G21: 김정화 | H21: 김유빈 | I21: 363-370 | J21: 8 | K21: 9.21
H22: 안성은 | I22: 371-406 | J22: 36 | K22: 9.2
H23: 조수연 | I23: 407-442 | J23: 36 | K23: 9.22
H24: 김가희 | I24: 443-478 | J24: 35 | K24: 9.29
H25: 김유빈 | I25: 479-550 | J25: 72 | K25: 9.29
H26: 안성은 | I26: 551-576 | J26: 26 | K26: 9.29
B27: 594-797 | C27: 224 | D27: 0 | E27: 733-931 | F27: 199 | G27: 송정현 | H27: 김가희 | I27: 587-626 | J27: 40 | K27: 9.13
H28: 김유빈 | I28: 627-666 | J28: 40 | K28: 9.1
H29: 조수연 | I29: 667-686 | J29: 20 | K29: 9.16
H30: 안성은 | I30: 687-726 | J30: 40 | K30: 9.29
H31: 조수연 | I31: 727-797 | J31: 71 | K31: 9.29
A32: 2 | B32: 3-386 | C32: 384 | D32: 0 | E32: 3-345 | F32: 343 | G32: 송정현 | H32: 김가희 | I32: 1-60 | J32: 60 | K32: 10.9
H33: 안성은 | I33: 61-120 | J33: 60 | K33: 10.7
H34: 조수연 | I34: 121-140 | J34: 20 | K34: 10.14
H35: 김유빈 | I35: 141-186 | J35: 73 | K35: 10.26
H36: 김유빈 | I36: 187-259 | J36: 73 | K36: 11.04
H37: 김가희 | I37: 260-278 | J37: 19 | K37: 11.05
H38: 안성은 | I38: 278-334 | J38: 57 | K38: 11.17
H39: 조수연 | I39: 335-386 | J39: 54 | K39: 11.17
B40: 387-892 | C40: 506 | D40: 0 | E40: 345-784 | F40: 440 | G40: 김정화 | H40: 조수연 | I40: 387-449 | J40: 63 | K40: 10.27
H41: 김가희 | I41: 450-483 | J41: 34 | K41: 10.26
H42: 김유빈 | I42: 485-514 | J42: 30 | K42: 11.09
H43: 김가희 | I43: 515-545 | J43: 31 | K43: 11.04
H44: 안성은 | I44: 546-627 | J44: 82 | K44: 11.24
H45: 조수연 | I45: 628-648 | J45: 21 | K45: 12.02
H46: 안성은 | I46: 649-699 | J46: 51 | K46: 11.29
H47: 조수연 | I47: 700-749 | J47: 50 | K47: 12.09
H48: 안성은 | I48: 750-800 | J48: 51 | K48: 12.04
H49: 조수연 | I49: 801-868 | J49: 68 | K49: 12.25
H50: 안성은 | I50: 870-892 | J50: 23 | K50: 12.09
A51: 3 | B51: 3-22 | C51: 19 | D51: 0 | E51: 3-17 | F51: 16 | G51: 김정화 | H51: 조수연 | I51: 1-22 | J51: 22 | K51: 12.25
B52: 23-220 | C52: 198 | D52: 0 | E52: 17-198 | F52: 182 | G52: 심경순 | H52: 안성은 | I52: 23-83 | J52: 61 | K52: 10.26
H53: 김유빈 | I53: 84-102 | J53: 19 | K53: 10.26
H54: 조수연 | I54: 103-178 | J54: 76 | K54: 11.03
H55: 김가희 | I55: 179-220 | J55: =220-179 -> 41 | K55: 11.09
B56: 221-952 | C56: 732 | D56: 12 | E56: 198-817 | F56: 620 | G56: 문경득 | H56: 안성은 | I56: 221-290 | J56: =290-221 -> 69 | K56: 11.03
H57: 김가희 | I57: 291-306 | J57: =306-291 -> 15 | K57: 11.05
H58: 조수연 | I58: 308-368 | J58: =368-308 -> 60 | K58: 11.24
H59: 김유빈 | I59: 369-423 | J59: =423-369 -> 54 | K59: 12.01
H60: 김가희 | I60: 424-473 | J60: 50 | K60: 12.04
H61: 김유빈 | I61: 474-543 | J61: 70 | K61: 12.08
H62: 김가희 | I62: 544-642 | J62: 99 | K62: 12.09
H63: 김유빈 | I63: 643-703 | J63: 61 | K63: 12.25
H64: 조수연 | I64: 704-717 | J64: 14 | K64: 12.24
H65: 김가희 | I65: 718-753 | J65: 46 | K65: 12.28
H66: 김유빈 | I66: 754-841 | J66: 88 | K66: 1.06
H67: 김유빈 | I67: 842-891 | J67: =891-841 -> 50 | K67: 1.06
H68: 안성은 | I68: 892-941 | J68: =941-891 -> 50 | K68: 1.19
H69: 김가희 | I69: 942-952 | J69: 11 | K69: 1.3
A70: 4 | B70: 1-200 | C70: 200 | D70: 0 | E70: 3-189 | F70: 186 | G70: 심경순 | H70: 김유빈 | I70: 1-100 | J70: 100 | K70: 11.23
H71: 김가희 | I71: 101-200 | J71: 100 | K71: 11.21
B72: 201-424 | C72: 224 | E72: 189-351 | F72: 162 | G72: 송정현 | H72: 조수연 | I72: 201-302 | J72: 102 | K72: 1.07
H73: 김유빈 | I73: 303-316 | J73: 14 | K73: 1.06
H74: 김유빈 | I74: 317-424 | J74: =425-317 -> 108 | K74: 1.16
B75: 425-704 | C75: 280 | E75: 351-579 | F75: 228 | G75: 김정화 | H75: 조수연 | I75: 425-449 | J75: =450-425 -> 25 | K75: 12.25
H76: 안성은 | I76: 450-489 | J76: 40 | K76: 12.09
H77: 안성은 | I77: 491-527 | J77: =527-490 -> 37 | K77: 1.09
H78: 안성은 | I78: 525-704 | J78: =704-524 -> 180 | K78: 1.19
B79: 705-976 | C79: 272 | D79: 272 | E79: 579-837 | F79: 258 | G79: 문경득 | H79: 김가희 | I79: 705-839 | J79: 135 | K79: 1.3
H80: 김가희 | I80: 840-941 | J80: 102 | K80: 2.08
H81: 감가희 | I81: 942-974 | J81: 33 | K81: 2.15
A82: 8 | B82: 1-968 | C82: 968 | E82: 3-215 | F82: 213 | G82: 문경득 | H82: 김가희 | I82: 1-93 | J82: 93 | K82: 2.16
E83: 216-998 | F83: 782 | G83: 심경순
A84: 9 | B84: 1-918 | C84: 918 | D84: =C84-J84-J86 -> 668 | E84: 3-882 | F84: 880 | G84: 심경순 | H84: 조수연 | I84: 1-150 | J84: 150 | K84: 1.18
H85: 조수연 | I85: 151-250 | J85: 100 | K85: 2.2
H86: 김유빈 | I86: 250-350 | J86: 100 | K86: 2.16
A87: 10 | B87: 1-915 | C87: 915 | E87: 3-946 | F87: 944 | G87: 송정현 | H87: 김가희 | I87: 1-108 | J87: 108 | K87: 2.13
A88: 11 | B88: 1-916 | C88: 916 | E88: 3-949 | F88: 947 | G88: 학부생 | H88: 김가희 | I88: 1-50 | J88: 50
H89: 김유빈 | I89: 51-100 | J89: 50
H90: 조수연 | I90: 101-150 | J90: 50
H91: 안성은 | I91: 151-200 | J91: 50
H92: 김가희 | I92: 201-250 | J92: 50
H93: 김유빈 | I93: 251-300 | J93: 50
H94: 안성은 | I94: 301-350 | J94: 50
H95: 조수연 | I95: 351-400 | J95: 50

Sheet 일자별(태깅)
A1: 전주대 태깅 일자별 진도표
A3: 권수 | B3: 영인본 | D3: 잔여량 | E3: 번역본 | G3: 입력자 | I3: 입력량
B4: 쪽수 | C4: 분량 | E4: 쪽수 | F4: 분량 | I4: 9월 23일 | J4: 9월 30일 | K4: 10월 7일 | L4: 10월 14일
A5: 1 | B5: 1-100 | C5: 100 | D5: 0 | E5: 3-269 | F5: 267 | G5: 심경순 | I5: 36 | J5: - | K5: - | L5: - | M5: - | N5: - | O5: -
B6: 101-234 | C6: 134 | D6: 0 | E6: 3-269 | F6: 267 | G6: 심경순 | I6: 문경득 0 | J6: 문->심 | K6: 100 | L6: 34
B7: 235-358 | C7: 124 | D7: 0 | E7: 269-469 | F7: 201 | G7: 심경순 | I7: - | J7: - | K7: - | L7: - | M7: - | N7: - | O7: -
B8: 359-576 | C8: 218 | D8: 0 | E8: 469-733 | F8: 265 | G8: 김정화 | I8: 138 | J8: - | K8: - | L8: - | M8: - | N8: - | O8: -
B9: 594-797 | C9: 224 | D9: 0 | E9: 733-931 | F9: 199 | G9: 송정현 | I9: 112 | J9: - | K9: - | L9: - | M9: - | N9: - | O9: -
A11: 권수 | B11: 영인본 | D11: 잔여량 | E11: 번역본 | G11: 입력자 | I11: 입력량
B12: 쪽수 | C12: 분량 | E12: 쪽수 | F12: 분량 | I12: 10월 7일 | J12: 10월 14일 | K12: 10월21일 | L12: 10월 28일 | M12: 11월 4일 | N12: 11월11일 | O12: 11월 18일 | P12: 11월 25일 | Q12: 12월2일
A13: 2 | B13: 3-386 | C13: 384 | D13: 0 | E13: 3-345 | F13: 343 | G13: 송정현 | I13: 140 | J13: 43 | K13: 休 | L13: 93 | N13: 103 | O13: - | P13: - | Q13: -
A14: 2 | B14: 387-892 | C14: 506 | D14: 193 | E14: 345-784 | F14: 440 | G14: 김정화 | I14: - | J14: 107 | K14: 休 | L14: - | O14: 104 | P14: 51
A16: 권수 | B16: 영인본 | D16: 잔여량 | E16: 번역본 | G16: 입력자 | I16: 입력량
B17: 쪽수 | C17: 분량 | E17: 쪽수 | F17: 분량 | I17: 10월 7일 | J17: 10월14일 | K17: 10월21일 | L17: 10월 28일 | M17: 11월 4일 | N17: 11월11일 | O17: 11월 18일 | P17: 11월 25일
A18: 3 | B18: 3-22 | C18: 19 | D18: 16 | E18: 3-17 | F18: 16 | G18: 김정화 | Q18: 12월 20일
B19: 23-220 | C19: 198 | D19: 0 | E19: 17-198 | F19: 182 | G19: 심경순 | J19: 79 | K19: 休 | L19: 117 | M19: - | N19: - | O19: - | P19: - | Q19: -
B20: 221-952 | C20: 732 | D20: 529 | E20: 198-817 | F20: 620 | G20: 문경득 | I20: - | J20: - | K20: 休 | L20: 86 | M20: - | O20: 60 | P20: 54 | Q20: 1월24일
A22: 권수 | B22: 영인본 | D22: 잔여량 | E22: 입력본 | G22: 입력자 | I22: 입력량
B23: 쪽수 | C23: 분량 | E23: 쪽수 | F23: 분량 | I23: 11월 25일 | J23: 12월 2일 | K23: 12월 9일 | L23: 12월 27일 | M23: 1월 3일 | N23: 1월 10일 | O23: 1월 16일 | P23: 1월 24일
A24: 4 | B24: 1-200 | C24: 200 | D24: 0 | E24: 3-189 | F24: 186 | G24: 심경순 | I24: 200 | J24: - | K24: - | L24: - | M24: - | N24: - | O24: - | P24: -
B25: 201-424 | C25: 224 | D25: 224 | E25: 189-351 | F25: 162 | G25: 송정현 | L25: 116 | N25: 117 | O25: - | P25: -
B26: 425-704 | C26: 280 | D26: 280 | E26: 351-579 | F26: 228 | G26: 김정화 | K26: 65 | M26: 37 | O26: 180 | P26: -
B27: 705-976 | C27: 272 | D27: =C27-I27-J27-K27-L27-M27-N27-O27-P27-Q27-R27 -> 212 | E27: 579-837 | F27: 258 | G27: 문경득 | P27: 60
A29: 권수 | B29: 영인본 | D29: 잔여량 | E29: 입력본 | G29: 입력자
B30: 쪽수 | C30: 분량 | E30: 쪽수 | F30: 분량
A31: 5 | B31: 1-930 | C31: 930 | D31: =C31-I31-J31-K31-L31-M31-N31-O31 -> 930 | E31: 3-890 | F31: 888 | G31: 김정화
A33: 권수 | B33: 영인본 | D33: 잔여량 | E33: 입력본 | G33: 입력자
B34: 쪽수 | C34: 분량 | E34: 쪽수 | F34: 분량
A35: 8 | B35: 1-968 | C35: 968 | D35: =C35-I35-J35-K35-L35-M35-N35-O35 -> 968 | E35: 3-998 | F35: 996 | G35: 문경득
A37: 권수 | B37: 영인본 | D37: 잔여량 | E37: 입력본 | G37: 입력자
B38: 쪽수 | C38: 분량 | E38: 쪽수 | F38: 분량 | I38: 1월 10일 | J38: 1월 24일
A39: 9 | B39: 1-918 | C39: 918 | D39: =C39-I39-J39-K39-L39-M39-N39-O39 -> 668 | E39: 3-882 | F39: 880 | G39: 심경순 | I39: 150 | J39: 100
A41: 권수 | B41: 영인본 | D41: 잔여량 | E41: 입력본 | G41: 입력자
B42: 쪽수 | C42: 분량 | E42: 쪽수 | F42: 분량
A43: 10 | B43: 1-915 | C43: 915 | D43: =C43-I43-J43-K43-L43-M43-N43-O43 -> 915 | E43: 3-946 | F43: 944 | G43: 송정현

Sheet 일자별(검수)
A1: 전주대 검수 일자별 진도표
A4: 권수 | B4: 영인본 | D4: 잔여량 | E4: 번역본 | G4: 검수자 | I4: 검수량
B5: 쪽수 | C5: 분량 | E5: 쪽수 | F5: 분량
A6: 26 | J6: - | K6: - | L6: - | M6: - | N6: - | O6: -
A8: 권수 | B8: 영인본 | D8: 잔여량 | E8: 번역본 | G8: 검수자 | I8: 검수량
B9: 쪽수 | C9: 분량 | E9: 쪽수 | F9: 분량
A10: 27 | J10: - | K10: - | L10: - | M10: - | N10: - | O10: -
A12: 권수 | B12: 영인본 | D12: 잔여량 | E12: 번역본 | G12: 검수자 | I12: 검수량
B13: 쪽수 | C13: 분량 | E13: 쪽수 | F13: 분량
A14: 28 | J14: - | K14: - | L14: - | M14: - | N14: - | O14: -
A16: 권수 | B16: 영인본 | D16: 잔여량 | E16: 번역본 | G16: 검수자 | I16: 검수량
B17: 쪽수 | C17: 분량 | E17: 쪽수 | F17: 분량
A18: 29 | J18: - | K18: - | L18: - | M18: - | N18: - | O18: -
A20: 권수 | B20: 영인본 | D20: 잔여량 | E20: 번역본 | G20: 검수자 | I20: 검수량
B21: 쪽수 | C21: 분량 | E21: 쪽수 | F21: 분량
A22: 30 | J22: - | K22: - | L22: - | M22: - | N22: - | O22: -

Sheet 글자수
A3: 권수 | B3: 영인본 | D3: 번역본 | F3: 입력자 | G3: 글자수
B4: 쪽수 | C4: 분량 | D4: 쪽수 | E4: 분량
A5: 4 | B5: 003-200 | C5: 197 | D5: 3-189 | E5: 186 | F5: 심경순 | G5: 44992
B6: 201-424 | C6: 223 | D6: 189-351 | E6: 162 | F6: 송정현 | G6: 44992
B7: 425-704 | C7: 279 | D7: 351-579 | E7: 228 | F7: 김정화 | G7: 59835
B8: 705-974 | C8: 269 | D8: 579-837 | E8: 258 | F8: 문경득 | G8: 59835
A9: 5 | B9: 1-930 | C9: 930 | D9: 3-890 | E9: 888 | F9: 김정화 | G9: 215100
A10: 8 | B10: 1-968 | C10: 968 | D10: 3-998 | E10: 996 | F10: 문경득 | G10: 262258
A11: 9 | B11: 1-918 | C11: 918 | D11: 3-882 | E11: 880 | F11: 심경순 | G11: 228889
A12: 10 | B12: 1-915 | C12: 915 | D12: 3-946 | E12: 944 | F12: 송정현 | G12: 236637

Sheet Sheet2
A1: 26 | B1: 257 | C1: 0
B2: 291 | C2: 김
B3: 135
A4: 27 | B4: 121
B5: 148 | C5: 김
B6: 119 | C6: 0 | G6: 291 | H6: 김 | I6: 34 | J6: 문
B7: 185 | C7: 0 | G7: 148 | H7: 김 | I7: 423 | J7: 문
B8: 11 | C8: 0 | G8: 41 | H8: 김 | I8: =SUM(I6:I7) -> 457
B9: 139 | G9: 73 | H9: 김
B10: 127 | G10: 51 | H10: 김
B11: 7 | C11: 0 | G11: 348 | H11: 김
B12: 17 | G12: =SUM(G6:G11) -> 952
B13: 41 | C13: 김 | E13: 952
B14: 73 | C14: 김 | E14: 257 | H14: 952 | I14: 457
A15: 28 | B15: 49 | E15: 119 | G15: 26 | H15: 257 | I15: 135
B16: 49 | E16: 185 | G16: 27 | H16: 119 | I16: 121
B17: 51 | C17: 김 | E17: 11 | H17: 185 | I17: 17
B18: 50 | E18: 7 | G18: 29 | H18: 100 | I18: 139
B19: 225 | E19: 100 | H19: 116 | I19: 127
A20: 29 | B20: 34 | C20: 문 | E20: 116 | H20: 163 | I20: 49
B21: 100 | C21: 0 | E21: 163 | G21: 27 | H21: 7 | I21: 49
B22: 116 | C22: 0 | E22: =SUM(E13:E21) -> 1910 | G22: 27 | H22: 11 | I22: 50
B23: 61 | I23: 61
B24: 117 | G24: 1912 | H24: =SUM(H14:H23) -> 1910 | I24: 117
B25: 265 | I25: 265
B26: 163 | C26: 0 | I26: 102
A27: 30 | B27: 102 | I27: 225
B28: 423 | C28: 문
B29: 348 | C29: 김
B30: =SUM(B1:B29) -> 3824 | C30: =B30/2 -> 1912 | I30: =SUM(I14:I29) -> 1914
